fUSD/lending_fUSD_20251120
["ID","MTS","AMOUNT","RATE_DAILY","PERIOD"]
[394534326,1763675252549,-151.0,0.00024658,7]
[394534327,1763675252577,-151.0,0.00024658,7]
[394534328,1763675252605,-151.0,0.00024658,7]
[394534329,1763675252633,-151.0,0.00024658,7]
[394534330,1763675252660,-151.0,0.00024658,7]
[394534331,1763675252688,-151.0,0.00024658,7]
[394534332,1763675252716,-151.0,0.00024658,7]
[394534333,1763675252744,-151.0,0.00024658,7]
[394534334,1763675252771,-158.371195,0.00024658,7]
[394534335,1763675252799,-200.412908,0.00024658,7]
[394534336,1763675252826,-151.0,0.00024658,7]
[394534337,1763675252854,-151.0,0.00024658,7]
[394534338,1763675252884,-151.0,0.00024658,7]
[394534339,1763675252911,-151.0,0.00024658,7]
[394534340,1763675252940,-151.0,0.00024658,7]
[394534341,1763675252968,-151.0,0.00024658,7]
[394534342,1763675252998,-151.0,0.00024658,7]
[394534343,1763675253027,-151.0,0.00024658,7]
[394534344,1763675253056,-151.0,0.00024658,7]
[394534345,1763675253086,-151.0,0.00024658,7]
[394534346,1763675253121,-280.341197,0.00024658,7]
[394534347,1763675253153,-151.0,0.00024658,7]
[394534348,1763675253185,-151.0,0.00024658,7]
[394534349,1763675253219,-151.0,0.00024658,7]
[394534350,1763675253250,-151.0,0.00024658,7]
[394534351,1763675253280,-151.0,0.00024658,7]
[394534352,1763675253310,-151.0,0.00024658,7]
[394534353,1763675253340,-151.0,0.00024658,7]
[394534354,1763675253370,-151.0,0.00024658,7]
[394534355,1763675253400,-151.0,0.00024658,7]
[394534356,1763675253430,-151.0,0.00024658,7]
[394534357,1763675253460,-151.0,0.00024658,7]
[394534358,1763675253491,-151.0,0.00024658,7]
[394534359,1763675253522,-151.0,0.00024658,7]
[394534360,1763675253554,-151.0,0.00024658,7]
[394534361,1763675253584,-151.0,0.00024658,7]
[394534362,1763675253615,-151.0,0.00024658,7]
[394534363,1763675253645,-179.169678,0.00024658,7]
[394534364,1763675253675,-151.0,0.00024658,7]
[394534365,1763675253703,-151.0,0.00024658,7]
[394534366,1763675253731,-151.0,0.00024658,7]
[394534367,1763675253761,-151.0,0.00024658,7]
[394534368,1763675253789,-151.0,0.00024658,7]
[394534369,1763675253819,-151.0,0.00024658,7]
[394534370,1763675253849,-151.0,0.00024658,7]
[394534371,1763675253879,-151.0,0.00024658,7]
[394534372,1763675253910,-151.0,0.00024658,7]
[394534373,1763675253941,-185.762901,0.00024658,7]
[394534374,1763675253972,-151.0,0.00024658,7]
[394534375,1763675254001,-151.0,0.00024658,7]
[394534376,1763675254032,-151.0,0.00024658,7]
[394534377,1763675254063,-151.0,0.00024658,7]
[394534378,1763675254097,-151.0,0.00024658,7]
[394534379,1763675254134,-151.0,0.00024658,7]
[394534380,1763675254169,-151.0,0.00024658,7]
[394534381,1763675254204,-151.0,0.00024658,7]
[394534382,1763675254237,-151.0,0.00024658,7]
[394534383,1763675254269,-151.0,0.00024658,7]
[394534385,1763675254301,-151.0,0.00024658,7]
[394534386,1763675254334,-152.801265,0.00024658,7]
[394534387,1763675254364,-4403.18940285,0.00026,10]
[394534388,1763675254395,-12383.3,0.000264,7]
[394534389,1763675254425,-1000.0,0.00026667,7]
[394534390,1763675254456,-168.0,0.00027,7]
[394534391,1763675254486,-500.0,0.00027397,5]
[394534392,1763675254516,-465.27,0.000274,7]
[394534393,1763675254544,-354.38,0.000274,7]
[394534394,1763675254573,-6102.58199226,0.00028,5]
[394534395,1763675254602,-12383.3,0.000289,7]
[394534396,1763675254636,-354.38,0.000293,7]
[394534397,1763675254667,-465.27,0.000294,7]
[394534398,1763675254700,-425.42,0.00029704,30]
[394534399,1763675254731,-239.31867581,0.00029724,30]
[394534400,1763675254763,-10000.0,0.0003,10]
[394534401,1763675254797,-1000.0,0.0003,5]
[394534402,1763675254829,-426.43191686,0.0003,10]
[394534403,1763675254857,-164.0,0.0003,14]
[394534404,1763675254887,-1246.0,0.0003042,7]
[394534405,1763675254916,-1246.0,0.0003042,7]
[394534406,1763675254944,-1246.0,0.0003042,7]
[394534407,1763675254974,-1246.0,0.0003042,7]
[394534408,1763675255001,-1246.0,0.0003042,7]
[394534409,1763675255030,-1246.0,0.0003042,7]
[394534410,1763675255060,-1246.0,0.0003042,7]
[394534411,1763675255091,-1246.0,0.0003042,7]
[394534412,1763675255121,-1246.0,0.0003042,7]
[394534413,1763675255293,-151.0,0.0003042,7]
[394534414,1763675255322,-151.0,0.0003042,7]
[394534415,1763675255351,-151.0,0.0003042,7]
[394534416,1763675255379,-151.0,0.0003042,7]
[394534417,1763675255407,-151.0,0.0003042,7]
[394534418,1763675255435,-151.0,0.0003042,7]
[394534419,1763675255463,-151.0,0.0003042,7]
[394534420,1763675255490,-151.0,0.0003042,7]
[394534421,1763675255517,-151.0,0.0003042,7]
[394534422,1763675255545,-151.0,0.0003042,7]
[394534423,1763675255572,-151.0,0.0003042,7]
[394534424,1763675255600,-151.0,0.0003042,7]
[394534425,1763675255630,-465.27,0.000313,7]
[394534426,1763675255660,-354.38,0.000313,30]
[394534427,1763675255688,-12383.3,0.000315,7]
[394534428,1763675255715,-164.0,0.00031644,14]
[394534429,1763675255744,-182.40918605,0.00032,5]
[394534430,1763675255776,-740.0,0.000328,10]
[394534431,1763675255803,-500.0,0.00032876,10]
[394534432,1763675255831,-188.48294184,0.00032877,7]
[394534433,1763675255860,-465.27,0.000344,14]
[394534434,1763675255889,-354.38,0.000344,30]
[394534435,1763675255919,-964.76,0.00034436,38]
[394534436,1763675255948,-425.42,0.00034751,30]
[394534437,1763675255976,-250.0,0.00035,7]
[394534438,1763675256007,-1000.0,0.00035,6]
[394534439,1763675256037,-12383.3,0.000353,14]
[394534440,1763675256066,-152.02,0.00035616,60]
[394534441,1763675256096,-199.0,0.0003589,7]
[394534442,1763675256128,-465.27,0.000363,14]
[394534443,1763675256157,-223.84299385,0.00036359,120]
[394534444,1763675256187,-354.38,0.000364,30]
[394534445,1763675256218,-199.0,0.00036712,8]
[394534446,1763675256249,-500.0,0.00036986,15]
[394534447,1763675256277,-500.0,0.00036986,15]
[394534448,1763675256309,-500.0,0.00036986,15]
[394534449,1763675256340,-500.0,0.00036986,15]
[394534450,1763675256372,-500.0,0.00036986,15]
[394534451,1763675256400,-500.0,0.00036986,15]
[394534452,1763675256432,-555.98332506,0.00036986,15]
[394534453,1763675256465,-500.0,0.00036986,15]
[394534454,1763675256495,-500.0,0.00036986,15]
[394534455,1763675256525,-500.0,0.00036986,15]
[394534456,1763675256556,-500.0,0.00036986,15]
[394534457,1763675256589,-500.0,0.00036986,15]
[394534458,1763675256619,-500.0,0.00036986,15]
[394534459,1763675256649,-500.0,0.00036986,15]
[394534460,1763675256678,-500.0,0.00036986,15]
[394534461,1763675256707,-500.0,0.00036986,15]
[394534462,1763675256735,-500.0,0.00036986,15]
[394534463,1763675256765,-500.0,0.00036986,15]
[394534464,1763675256803,-500.0,0.00036986,15]
[394534465,1763675256837,-500.0,0.00036986,15]
[394534466,1763675256874,-500.0,0.00036986,15]
[394534467,1763675256911,-500.0,0.00036986,15]
[394534468,1763675256951,-500.0,0.00036986,15]
[394534469,1763675256985,-500.0,0.00036986,15]
[394534470,1763675257018,-500.0,0.00036986,15]
[394534471,1763675257058,-500.0,0.00036986,15]
[394534472,1763675257096,-500.0,0.00036986,15]
[394534473,1763675257139,-500.0,0.00036986,15]
[394534474,1763675257177,-500.0,0.00036986,15]
[394534475,1763675257217,-152.02,0.00037109,60]
[394534476,1763675257257,-12383.3,0.000375,14]
[394534477,1763675257295,-199.0,0.00037534,9]
[394534478,1763675257333,-574.0,0.00037869,120]
[394534479,1763675257367,-354.38,0.000379,30]
[394534480,1763675257399,-465.27,0.00038,14]
[394534481,1763675257433,-595.0,0.00038,30]
[394534482,1763675257471,-199.0,0.00038356,10]
[394534483,1763675257504,-1437.0,0.00038356,30]
[394534484,1763675257540,-3305.0,0.00038356,30]
[394534485,1763675257575,-5520.0,0.000384,5]
[394534486,1763675257612,-152.02,0.00038602,60]
[394534487,1763675257647,-9740.0,0.000388,14]
[394534488,1763675257681,-4704.91,0.000389,30]
[394534489,1763675257714,-170.24021899,0.00039,120]
[394534490,1763675257747,-305.87597396,0.00039,30]
[394534491,1763675257780,-595.0,0.00039,30]
[394534492,1763675257813,-223.84299385,0.00039098,120]
[394534493,1763675257847,-199.0,0.00039178,11]
[394534494,1763675257880,-1000.0,0.00039347,7]
[394534495,1763675257913,-354.38,0.000394,30]
[394534496,1763675257946,-12383.3,0.000394,14]
[394534497,1763675257979,-1018.29,0.000396,30]
[394534498,1763675258012,-465.27,0.000397,14]
[394534499,1763675258047,-425.42,0.00039798,30]
[394534500,1763675258081,-1500.0,0.00039872,15]
[394534501,1763675258118,-161.27,0.0004,7]
[394534502,1763675258154,-9233.45435441,0.0004,14]
[394534503,1763675258192,-3513.33643511,0.0004,10]
[394534504,1763675258226,-250.0,0.0004,7]
[394534505,1763675258260,-5000.74110208,0.0004,10]
[394534506,1763675258293,-33800.0,0.0004,30]
[394534507,1763675258328,-199.0,0.0004,12]
[394534508,1763675258361,-204.45,0.0004,30]
[394534509,1763675258394,-595.0,0.0004,30]
[394534510,1763675258427,-152.02,0.00040094,60]
[394534511,1763675258462,-274.6290151,0.00040821,13]
[394534512,1763675258495,-882.0,0.00040898,30]
[394534513,1763675258755,-4704.91,0.000409,30]
[394534514,1763675258801,-477.17086522,0.00040996,13]
[394534515,1763675258830,-477.17086521,0.00040996,13]
[394534516,1763675258861,-477.17086521,0.00040996,13]
[394534517,1763675258894,-477.17086521,0.00040996,13]
[394534518,1763675258926,-477.17086521,0.00040996,13]
[394534519,1763675258957,-477.17086521,0.00040996,13]
[394534520,1763675258993,-477.17086521,0.00040996,13]
[394534521,1763675259026,-477.17086521,0.00040996,13]
[394534522,1763675259058,-477.17086521,0.00040996,13]
[394534523,1763675259090,-477.17086521,0.00040996,13]
[394534524,1763675259122,-477.17086521,0.00040996,13]
[394534525,1763675259153,-477.17086521,0.00040996,13]
[394534526,1763675259191,-477.17086521,0.00040996,13]
[394534527,1763675259223,-477.17086521,0.00040996,13]
[394534528,1763675259254,-67000.0,0.00041,7]
[394534529,1763675259287,-4647.776622,0.00041,7]
[394534530,1763675259318,-595.0,0.00041,30]
[394534531,1763675259347,-300.0,0.00041068,22]
[394534532,1763675259377,-150.0,0.00041096,10]
[394534533,1763675259408,-717.19430311,0.00041165,50]
[394534534,1763675259439,-417.12,0.00041178,30]
[394534535,1763675259475,-417.12,0.00041178,30]
[394534536,1763675259504,-417.12,0.00041178,30]
[394534537,1763675259533,-417.12,0.00041178,30]
[394534538,1763675259562,-417.12,0.00041178,30]
[394534539,1763675259592,-206.59519,0.00041194,120]
[394534540,1763675259620,-31603.32962573,0.00041277,10]
[394534541,1763675259651,-882.0,0.0004132,30]
[394534542,1763675259684,-3116.3431,0.00041399,30]
[394534543,1763675259714,-354.38,0.000414,30]
[394534544,1763675259747,-465.27,0.000415,14]
[394534545,1763675259778,-150.0,0.00041553,120]
[394534546,1763675259807,-152.02,0.00041587,60]
[394534547,1763675259838,-389.61184234,0.00041695,30]
[394534548,1763675259869,-882.0,0.00041742,30]
[394534549,1763675259901,-223.84299385,0.00041838,120]
[394534550,1763675259932,-150.0,0.00041853,14]
[394534551,1763675259965,-152.0,0.00041865,5]
[394534552,1763675260000,-477.17086521,0.00041896,14]
[394534553,1763675260031,-130000.0,0.000419,14]
[394534554,1763675260059,-454.22212715,0.00041909,120]
[394534555,1763675260104,-2197.32109506,0.0004199,60]
[394534556,1763675260141,-500.0,0.00041996,15]
[394534557,1763675260173,-500.0,0.00041996,15]
[394534558,1763675260204,-500.0,0.00041996,15]
[394534559,1763675260238,-360.48192874,0.00041996,15]
[394534560,1763675260268,-500.0,0.00041996,15]
[394534561,1763675260300,-500.0,0.00041996,15]
[394534562,1763675260329,-500.0,0.00041996,15]
[394534563,1763675260359,-500.0,0.00041996,15]
[394534564,1763675260389,-500.0,0.00041996,15]
[394534565,1763675260418,-500.0,0.00041996,15]
[394534566,1763675260447,-500.0,0.00041996,15]
[394534567,1763675260476,-500.0,0.00041996,15]
[394534568,1763675260508,-500.0,0.00041996,120]
[394534569,1763675260537,-150.0,0.00042,49]
[394534570,1763675260569,-2710.66112875,0.00042,120]
[394534571,1763675260597,-266.32920581,0.00042,120]
[394534572,1763675260628,-199.31024656,0.00042,120]
[394534573,1763675260657,-380.44375069,0.00042,120]
[394534574,1763675260690,-231.58815826,0.00042,120]
[394534575,1763675260717,-550.68,0.00042,30]
[394534576,1763675260745,-550.68,0.00042,30]
[394534577,1763675260773,-550.68,0.00042,30]
[394534578,1763675260803,-339.2,0.00042,30]
[394534579,1763675260830,-478.75,0.00042,30]
[394534580,1763675260858,-550.68,0.00042,30]
[394534581,1763675260887,-478.75,0.00042,30]
[394534582,1763675260916,-478.75,0.00042,30]
[394534583,1763675260944,-478.75,0.00042,30]
[394534584,1763675260973,-478.75,0.00042,30]
[394534585,1763675261011,-589.29,0.00042,60]
[394534586,1763675261045,-500.20529971,0.00042,60]
[394534587,1763675261078,-5740.0,0.00042005,30]
[394534588,1763675261108,-1246.0,0.00042012,14]
[394534589,1763675261143,-1246.0,0.00042012,14]
[394534590,1763675261174,-1246.0,0.00042012,14]
[394534591,1763675261205,-1246.0,0.00042012,14]
[394534592,1763675261235,-1131.23535878,0.00042012,14]
[394534593,1763675261264,-151.0,0.00042013,14]
[394534594,1763675261294,-151.0,0.00042013,14]
[394534595,1763675261323,-1246.0,0.00042013,14]
[394534596,1763675261351,-151.0,0.00042013,14]
[394534597,1763675261380,-151.0,0.00042013,14]
[394534598,1763675261408,-151.0,0.00042013,14]
[394534599,1763675261438,-151.0,0.00042013,14]
[394534600,1763675261468,-166.0,0.00042013,14]
[394534601,1763675261501,-166.0,0.00042013,14]
[394534602,1763675261528,-166.0,0.00042013,14]
[394534603,1763675261557,-166.0,0.00042013,14]
[394534604,1763675261587,-166.0,0.00042013,14]
[394534605,1763675261825,-253.61607805,0.00042013,14]
[394534606,1763675261856,-151.0,0.00042013,120]
[394534607,1763675261886,-200.0,0.00042013,30]
[394534608,1763675261916,-520.0,0.00042013,120]
[394534609,1763675261945,-539.24,0.00042013,120]
[394534610,1763675261975,-207.4,0.00042013,30]
[394534611,1763675262003,-559.19188,0.00042013,120]
[394534612,1763675262032,-215.0738,0.00042013,30]
[394534613,1763675262062,-579.88197956,0.00042013,120]
[394534614,1763675262095,-215.0738,0.00042013,30]
[394534615,1763675262127,-637.18637966,0.00042013,120]
[394534616,1763675262156,-151.0,0.00042013,120]
[394534617,1763675262186,-152.44399677,0.00042013,120]
[394534618,1763675262219,-250.0,0.00042013,120]
[394534619,1763675262248,-353.76080498,0.00042013,120]
[394534620,1763675262279,-500.0,0.00042013,120]
[394534621,1763675262313,-337.84606576,0.00042013,120]
[394534622,1763675262355,-500.0,0.00042013,120]
[394534623,1763675262385,-500.0,0.00042013,120]
[394534624,1763675262414,-250.0,0.00042013,120]
[394534625,1763675262442,-500.0,0.00042013,120]
[394534626,1763675262471,-500.0,0.00042013,120]
[394534627,1763675262499,-500.0,0.00042013,120]
[394534628,1763675262528,-500.0,0.00042013,120]
[394534629,1763675262558,-500.0,0.00042013,120]
[394534630,1763675262593,-500.0,0.00042013,120]
[394534631,1763675262632,-250.0,0.00042013,120]
[394534632,1763675262662,-250.0,0.00042013,120]
[394534633,1763675262692,-500.0,0.00042013,120]
[394534634,1763675262720,-250.0,0.00042013,120]
[394534635,1763675262749,-500.0,0.00042013,120]
[394534636,1763675262778,-250.0,0.00042013,120]
[394534637,1763675262808,-500.0,0.00042013,120]
[394534638,1763675262837,-250.0,0.00042013,120]
[394534639,1763675262870,-516.16934291,0.00042013,120]
[394534640,1763675262899,-250.0,0.00042013,120]
[394534641,1763675262929,-250.0,0.00042013,120]
[394534642,1763675262960,-236.86482066,0.00042013,120]
[394534643,1763675262990,-151.0,0.00042013,120]
[394534644,1763675263020,-151.0,0.00042013,120]
[394534645,1763675263052,-246.92858931,0.00042013,120]
[394534646,1763675263082,-220.0,0.00042013,120]
[394534647,1763675263115,-306.69935164,0.00042013,120]
[394534648,1763675263149,-220.0,0.00042013,120]
[394534649,1763675263178,-367.10117552,0.00042013,120]
[394534650,1763675263211,-250.0,0.00042013,120]
[394534651,1763675263242,-500.0,0.00042013,120]
[394534652,1763675263273,-250.0,0.00042013,120]
[394534653,1763675263306,-500.0,0.00042013,120]
[394534654,1763675263336,-250.0,0.00042013,120]
[394534655,1763675263366,-500.0,0.00042013,120]
[394534656,1763675263398,-250.0,0.00042013,120]
[394534657,1763675263441,-500.0,0.00042013,120]
[394534658,1763675263485,-250.0,0.00042013,120]
[394534659,1763675263519,-446.55630019,0.00042013,120]
[394534660,1763675263552,-500.0,0.00042013,120]
[394534661,1763675263584,-250.0,0.00042013,120]
[394534662,1763675263618,-250.0,0.00042013,120]
[394534663,1763675263649,-300.0,0.00042013,120]
[394534664,1763675263678,-311.1,0.00042013,120]
[394534665,1763675263708,-322.6107,0.00042013,120]
[394534666,1763675263739,-334.5472959,0.00042013,120]
[394534667,1763675263769,-346.92554585,0.00042013,120]
[394534668,1763675263798,-359.76179104,0.00042013,120]
[394534669,1763675263828,-370.42000427,0.00042013,120]
[394534670,1763675263858,-347.64330208,0.00042013,120]
[394534671,1763675263888,-6598.53350787,0.00042014,30]
[394534672,1763675263921,-200.0,0.00042014,7]
[394534673,1763675263950,-151.0,0.00042014,14]
[394534674,1763675263980,-151.0,0.00042014,14]
[394534675,1763675264011,-151.0,0.00042014,14]
[394534676,1763675264043,-151.0,0.00042014,14]
[394534677,1763675264074,-1246.0,0.00042014,14]
[394534678,1763675264106,-151.0,0.00042014,14]
[394534679,1763675264140,-1246.0,0.00042014,14]
[394534680,1763675264176,-151.0,0.00042014,14]
[394534681,1763675264209,-151.0,0.00042014,14]
[394534682,1763675264241,-151.0,0.00042014,14]
[394534683,1763675264275,-151.0,0.00042014,14]
[394534684,1763675264308,-151.0,0.00042014,14]
[394534685,1763675264341,-151.0,0.00042014,14]
[394534686,1763675264374,-151.0,0.00042014,14]
[394534687,1763675264405,-151.0,0.00042014,14]
[394534688,1763675264437,-151.0,0.00042014,14]
[394534689,1763675264467,-151.0,0.00042014,14]
[394534690,1763675264497,-151.0,0.00042014,14]
[394534691,1763675264527,-151.0,0.00042014,14]
[394534692,1763675264556,-229.78882936,0.00042014,14]
[394534693,1763675264586,-1200.0,0.00042014,30]
[394534694,1763675264615,-200.0,0.00042014,7]
[394534695,1763675264646,-151.0,0.00042014,14]
[394534696,1763675264674,-424.15715681,0.00042054,30]
[394534697,1763675264710,-151.0,0.00042056,14]
[394534698,1763675264740,-882.0,0.00042163,30]
[394534699,1763675264768,-855.0,0.00042163,7]
[394534700,1763675264970,-500.0,0.0004227,120]
[394534701,1763675265001,-250.0,0.00042466,10]
[394534702,1763675265032,-500.0,0.00042544,120]
[394534703,1763675265067,-882.0,0.00042585,30]
[394534704,1763675265098,-500.0,0.00042818,120]
[394534705,1763675265131,-210.0,0.0004295,30]
[394534706,1763675265161,-214.0,0.00043,7]
[394534707,1763675265197,-150.0,0.00043,5]
[394534708,1763675265227,-150.0,0.00043,5]
[394534709,1763675265254,-23079.09088196,0.00043,120]
[394534710,1763675265282,-158.39872829,0.00043,120]
[394534711,1763675265309,-2324.17113932,0.00043,120]
[394534712,1763675265341,-561.0,0.00043,10]
[394534713,1763675265371,-12383.3,0.00043,14]
[394534714,1763675265399,-500.0,0.00043,61]
[394534715,1763675265426,-882.0,0.00043006,30]
[394534716,1763675265454,-152.02,0.0004308,60]
[394534717,1763675265482,-500.0,0.00043092,120]
[394534718,1763675265510,-1788.80051349,0.000431,120]
[394534719,1763675265538,-200.0,0.00043131,120]
[394534720,1763675265567,-324.213,0.0004322,30]
[394534721,1763675265596,-2710.66112875,0.000433,120]
[394534722,1763675265625,-266.32920581,0.000433,120]
[394534723,1763675265653,-199.31024656,0.000433,120]
[394534724,1763675265681,-380.44375069,0.000433,120]
[394534725,1763675265709,-231.58815826,0.000433,120]
[394534726,1763675265738,-500.0,0.00043366,120]
[394534727,1763675265768,-882.0,0.00043428,30]
[394534728,1763675265797,-152.0,0.00043474,6]
[394534729,1763675265824,-1735.40527,0.00043477,30]
[394534730,1763675265852,-1444.0,0.00043562,120]
[394534731,1763675265882,-500.0,0.0004364,120]
[394534732,1763675265909,-242.70880647,0.000437,120]
[394534733,1763675265939,-185.61962392,0.000438,30]
[394534734,1763675265967,-350.0,0.00043836,10]
[394534735,1763675266167,151.0,0.00024658,7]
[394534738,1763675293922,-1238.33,0.000366,14]
[394534739,1763675293956,-174.47168,0.00036688,30]
[394534740,1763675293991,-174.47168,0.00036888,30]
[394534741,1763675294023,-174.47168,0.00037088,30]
[394534742,1763675294055,-174.47168,0.00037288,30]
[394534743,1763675294087,-174.47168,0.00037488,30]
[394534744,1763675294119,-174.47168,0.00037688,30]
[394534745,1763675294154,-174.47168,0.00037888,30]
[394534746,1763675294186,-174.47168,0.00038088,30]
[394534747,1763675294219,-174.47168,0.00038288,30]
[394534748,1763675294254,-174.47168,0.00038488,30]
[394534749,1763675294287,-1238.33,0.000385,14]
[394534750,1763675294317,-174.47168,0.00038688,30]
[394534751,1763675294349,-174.47168,0.00039088,30]
[394534752,1763675294378,-174.47168,0.00039288,30]
[394534753,1763675294409,-174.47168,0.00039488,30]
[394534754,1763675294439,-174.47168,0.00039688,30]
[394534755,1763675294470,-174.47168,0.00039888,30]
[394534756,1763675294500,-174.47168,0.00040088,30]
[394534757,1763675294530,-174.47168,0.00040288,30]
[394534758,1763675294561,-174.47168,0.00040488,30]
[394534759,1763675294592,-174.47168,0.00040688,30]
[394534760,1763675294622,-1238.33,0.000408,14]
[394534761,1763675294651,-174.47168,0.00040888,30]
[394534762,1763675294680,-174.47168,0.00041088,30]
[394534763,1763675294879,-550.68,0.00041918,30]
[394534764,1763675294909,-478.75,0.00041918,30]
[394534765,1763675294939,-712.54,0.00041918,30]
[394534766,1763675294969,-500.0,0.00041996,30]
[394534767,1763675294998,-199.74690436,0.00042,120]
[394534768,1763675295027,-228.26625042,0.00042,120]
[394534769,1763675295058,-199.31024655,0.00042,120]
[394534770,1763675295089,-689.9,0.00042013,30]
[394534771,1763675295124,-500.0,0.0004227,30]
[394534772,1763675295152,-500.0,0.00042544,30]
[394534773,1763675295184,-500.0,0.00042818,30]
[394534774,1763675295214,-199.74690436,0.000433,120]
[394534775,1763675295243,-228.26625042,0.000433,120]
[394534776,1763675295272,-199.31024655,0.000433,120]
[394534777,1763675295303,-500.0,0.00043836,31]
[394534778,1763675295333,-500.0,0.00043914,120]
[394534779,1763675295363,-153.0,0.00044,120]
[394534780,1763675295393,-152.0,0.00044,120]
[394534781,1763675295423,-155.41583776,0.00044,120]
[394534782,1763675295454,-345.25644122,0.00044,120]
[394534783,1763675295485,-398.546719,0.00044,57]
[394534784,1763675295516,-5000.0,0.00044,120]
[394534785,1763675295545,-500.0,0.00044,62]
[394534786,1763675295577,-204.45,0.00044,30]
[394534787,1763675295606,-150.0,0.00044062,120]
[394534788,1763675295635,-1767.88,0.000441,60]
[394534789,1763675295663,-500.0,0.00044188,120]
[394534790,1763675295693,-500.0,0.00044462,120]
[394534791,1763675295724,-152.0,0.000445,120]
[394534792,1763675295752,-417.82425865,0.000445,120]
[394534793,1763675295780,-223.84299385,0.00044578,120]
[394534794,1763675295809,-153.0,0.000446,120]
[394534795,1763675295838,-2710.66112875,0.000446,120]
[394534796,1763675295866,-199.74690436,0.000446,120]
[394534797,1763675295895,-228.26625042,0.000446,120]
[394534798,1763675295924,-199.31024655,0.000446,120]
[394534799,1763675295952,-500.0,0.00044736,120]
[394534800,1763675295984,-3126.53609724,0.000448,120]
[394534801,1763675296015,-425.42,0.00044845,120]
[394534802,1763675296046,-378.9632151,0.000449,30]
[394534803,1763675296077,-210.0,0.0004496,30]
[394534804,1763675296111,-50000.0,0.00045,45]
[394534805,1763675296147,-606.75754614,0.00045,10]
[394534806,1763675296178,-150.0,0.00045,10]
[394534807,1763675296210,-152.0,0.00045,120]
[394534808,1763675296241,-521.1542895,0.00045,120]
[394534809,1763675296271,-11589.094979,0.00045,120]
[394534810,1763675296300,-301.97953945,0.00045,120]
[394534811,1763675296333,-152.28831263,0.00045,120]
[394534812,1763675296362,-2536.68873167,0.00045,120]
[394534813,1763675296393,-1430.0,0.00045,30]
[394534814,1763675296426,-1932.85796667,0.00045,120]
[394534815,1763675296460,-382.92339093,0.00045,120]
[394534816,1763675296492,-1122.99152167,0.00045,32]
[394534817,1763675296524,-510.49167386,0.00045,120]
[394534818,1763675296555,-14404.08371938,0.00045,120]
[394534819,1763675296589,-200.0,0.00045,120]
[394534820,1763675296620,-420.0,0.00045,120]
[394534821,1763675296650,-280.0,0.00045,10]
[394534822,1763675296678,-420.0,0.00045,120]
[394534823,1763675296707,-150.0,0.00045,120]
[394534824,1763675296735,-300.0,0.00045,120]
[394534825,1763675296764,-172.31,0.0004501,120]
[394534826,1763675296793,-200.0,0.00045067,120]
[394534827,1763675296822,-153.0,0.000452,120]
[394534828,1763675296853,-450.0,0.00045205,10]